bitfinex-derivatives/quotes_SOLF0:USTF0_20260304
["timestamp","ask_amount","ask_price","bid_price","bid_amount"]
[1772655774507,20.07370375,93.329,93.23,8.28113072]
[1772655774702,8.28113072,93.33,93.23,8.28113072]
[1772655774703,20.07370375,93.327,93.23,8.28113072]
[1772655774911,20.07370375,93.327,93.256,9.646]
[1772655775313,20.07370375,93.327,93.23,8.28113072]
[1772655775517,20.07370375,93.327,93.263,9.645]
[1772655775716,20.07370375,93.327,93.23,8.28113072]
[1772655776418,20.07370375,93.327,93.25,8.28113072]
[1772655777215,20.07370375,93.327,93.275,9.644]
[1772655779326,20.07370375,93.327,93.267,9.645]
[1772655781422,20.07370375,93.327,93.286,9.643]
[1772655781622,20.07370375,93.327,93.25,8.28113072]
[1772655781827,20.07370375,93.327,93.278,9.644]
[1772655782027,20.07370375,93.327,93.25,29.83913072]
[1772655782629,20.07370375,93.327,93.26,9.646]
[1772655783530,20.07370375,93.327,93.25,21.558]
[1772655783725,20.07370375,93.327,93.25,29.83913072]
[1772655784129,171.58,93.403,93.244,19.295]
[1772655784130,20.51268101,93.349,93.27,8.28113072]
[1772655784328,20.51268101,93.349,93.271,21.558]
[1772655787232,20.51268101,93.349,93.294,9.642]
[1772655787433,20.51268101,93.349,93.272,21.558]
[1772655787729,20.51268101,93.349,93.273,21.558]
[1772655788527,20.51268101,93.349,93.285,9.643]
[1772655791532,20.51268101,93.349,93.291,9.642]
[1772655793819,20.51268101,93.349,93.274,21.558]
[1772655793820,20.64936355,93.339,93.28,9.643]
[1772655794021,20.64936355,93.339,93.245,21.558]
[1772655794224,20.64936355,93.319,93.22,8.26482262]
[1772655794425,20.64936355,93.299,93.21,21.558]
[1772655794630,20.64936355,93.299,93.2,8.26482262]
[1772655795030,20.64936355,93.299,93.201,19.304]
[1772655796034,20.64936355,93.299,93.235,9.648]
[1772655799628,20.64936355,93.299,93.243,9.647]
[1772655800922,20.64936355,93.299,93.224,9.649]
[1772655801128,8.26482262,93.3,93.225,21.558]
[1772655801129,20.58084127,93.297,93.225,21.558]
[1772655801324,20.58084127,93.297,93.209,21.558]
[1772655801531,20.58084127,93.297,93.214,9.65]
[1772655801841,20.58084127,93.279,93.178,21.558]
[1772655802032,20.56515743,93.277,93.179,21.558]
[1772655802237,20.56515743,93.275,93.179,21.558]
[1772655802437,20.56515743,93.273,93.179,21.558]
[1772655802737,20.56515743,93.273,93.19,8.26482262]
[1772655803837,20.56515743,93.273,93.222,9.649]
[1772655805328,20.56515743,93.273,93.212,9.65]
[1772655807232,20.56515743,93.273,93.215,9.65]
[1772655810242,20.56515743,93.273,93.216,21.558]
[1772655810444,20.38449184,93.269,93.22,9.65]
[1772655810742,20.38449184,93.269,93.22,3.31112634]
[1772655811446,20.38445441,93.289,93.23,3.31112634]
[1772655811641,20.38445441,93.289,93.24,3.31112634]
[1772655811949,20.38445441,93.289,93.25,3.31112634]
[1772655812544,20.38445441,93.289,93.249,9.647]
[1772655813145,20.38445441,93.289,93.253,9.646]
[1772655814341,20.32577942,93.279,93.22,3.31112634]
[1772655814545,23.63690576,93.25,93.206,21.558]
[1772655814850,23.63690576,93.25,93.19,3.31112634]
[1772655815150,23.63690576,93.25,93.216,9.65]
[1772655816443,20.32577942,93.25,93.216,9.65]
[1772655817044,20.32577942,93.25,93.207,9.651]
[1772655817744,20.32577942,93.25,93.214,9.65]
[1772655817944,20.42410518,93.279,93.215,21.558]
[1772655818141,20.42410518,93.299,93.22,8.28073669]
[1772655818340,20.42410518,93.299,93.231,9.649]
[1772655818544,20.42410518,93.299,93.221,21.558]
[1772655819649,20.42410518,93.299,93.238,9.648]
[1772655822351,20.42410518,93.299,93.247,9.647]
[1772655822550,20.42410518,93.299,93.221,21.558]
[1772655823243,20.42410518,93.299,93.238,9.648]
[1772655823744,20.42410518,93.299,93.258,9.646]
[1772655824150,20.48314518,93.337,93.24,29.83873669]
[1772655824346,20.48314518,93.335,93.265,9.645]
[1772655824550,15.66064518,93.309,93.21,8.28073669]
[1772655824750,15.66064518,93.308,93.21,8.28073669]
[1772655824952,15.66064518,93.308,93.257,9.646]
[1772655825154,15.66064518,93.308,93.23,8.28073669]
[1772655825655,15.66064518,93.308,93.257,9.646]
[1772655826446,15.66064518,93.308,93.23,8.28073669]
[1772655826655,15.66064518,93.308,93.21,8.28073669]
[1772655827853,15.70215641,93.289,93.19,8.28073669]
[1772655828855,15.70215641,93.289,93.228,9.649]
[1772655829458,15.70215641,93.289,93.21,8.28073669]
[1772655830459,15.70215641,93.289,93.236,9.648]
[1772655830957,15.70215641,93.289,93.21,8.28073669]
[1772655831261,15.70215641,93.289,93.233,9.648]
[1772655831461,15.70215641,93.289,93.21,8.28073669]
[1772655832358,15.70215641,93.289,93.24,9.648]
[1772655833062,15.70215641,93.289,93.21,8.28073669]
[1772655833260,15.70215641,93.289,93.232,9.648]
[1772655833857,15.70215641,93.289,93.24,9.648]
[1772655835666,15.70215641,93.289,93.232,9.648]
[1772655835863,15.65715465,93.288,93.232,9.648]
[1772655838564,3.31095926,93.27,93.232,9.648]
[1772655840373,3.31095926,93.25,93.213,21.558]
[1772655840573,3.31095926,93.25,93.19,3.31095926]
[1772655840574,3.31095926,93.25,93.191,21.558]
[1772655840971,3.31095926,93.25,93.2,3.31095926]
[1772655841468,3.31095926,93.25,93.214,9.65]
[1772655843081,15.60556695,93.259,93.214,9.65]
[1772655847483,15.56598111,93.239,93.206,9.651]
[1772655847683,15.56598111,93.249,93.2,3.31095926]
[1772655848378,15.91706128,93.275,93.23,3.31095926]
[1772655848584,15.91706128,93.295,93.25,3.31095926]
[1772655849282,15.91706128,93.295,93.252,9.646]
[1772655851182,15.91706128,93.295,93.243,9.647]
[1772655851378,15.8572211,93.294,93.243,9.647]
[1772655851582,15.8572211,93.293,93.243,9.647]
[1772655851784,15.8572211,93.292,93.243,9.647]
[1772655852085,15.8572211,93.292,93.22,8.27258857]
[1772655852290,15.8572211,93.292,93.221,21.558]
[1772655853480,15.8572211,93.292,93.249,9.647]
[1772655853685,15.86995747,93.291,93.249,9.647]
[1772655853987,15.86995747,93.291,93.24,9.648]
[1772655856290,15.86995747,93.291,93.232,9.648]
[1772655858390,15.86995747,93.291,93.224,21.558]
[1772655858591,8.03058688,93.298,93.225,21.558]
[1772655858792,15.96524032,93.304,93.225,21.558]
[1772655858982,15.9643509,93.303,93.246,9.647]
[1772655859186,15.9643509,93.303,93.247,21.558]
[1772655860089,15.9643509,93.303,93.248,9.647]
[1772655862088,15.6447042,93.302,93.248,9.647]
[1772655862387,15.6447042,93.299,93.247,21.558]
[1772655862595,15.6447042,93.298,93.247,21.558]
[1772655863091,15.6447042,93.298,93.184,150.172]
[1772655863092,15.64455768,93.345,93.26,8.27258857]
[1772655863488,15.64455768,93.345,93.294,9.642]
[1772655864094,15.64455768,93.345,93.26,8.27258857]
[1772655864697,15.64455768,93.345,93.292,9.642]
[1772655865888,15.64455768,93.345,93.301,9.641]
[1772655866092,15.64455768,93.345,93.28,8.27258857]
[1772655866493,15.64455768,93.345,93.306,9.641]
[1772655866894,15.64455768,93.345,93.28,8.27258857]
[1772655867093,15.64455768,93.345,93.288,9.643]
[1772655869999,15.64455768,93.345,93.295,9.642]
[1772655870201,15.64455768,93.345,93.296,21.558]
[1772655870598,3.30598626,93.34,93.296,21.558]
[1772655871494,3.30598626,93.33,93.296,21.558]
[1772655872302,18.85228293,93.34,93.296,21.558]
[1772655872601,15.54629667,93.34,93.296,21.558]
[1772655873205,15.54629667,93.34,93.303,9.641]
[1772655874103,15.56061653,93.359,93.31,3.30598626]
[1772655874701,3.30598626,93.37,93.32,3.30598626]
[1772655875006,18.86658518,93.37,93.31,3.30598626]
[1772655876497,18.86658518,93.37,93.319,9.639]
[1772655877405,3.30598626,93.36,93.319,9.639]
[1772655880104,3.30598626,93.36,93.326,9.639]
[1772655880304,3.30598626,93.39,93.34,3.30598626]
[1772655880504,15.56570787,93.391,93.35,3.30598626]
[1772655880902,15.56570787,93.391,93.363,9.635]
[1772655881103,15.56570787,93.391,93.34,3.30598626]
[1772655881505,3.30598626,93.39,93.34,3.30598626]
[1772655882003,3.30598626,93.39,93.35,9.636]
[1772655883107,15.56570787,93.391,93.35,9.636]
[1772655883499,3.30598626,93.39,93.35,9.636]
[1772655886809,15.48954005,93.411,93.37,3.30598626]
[1772655887010,15.48965557,93.429,93.37,3.30598626]
[1772655887910,18.6575388,93.4,93.331,21.558]
[1772655888114,18.6575388,93.39,93.332,21.558]
[1772655888913,3.30598626,93.36,93.31,24.86398626]
[1772655889116,3.30598626,93.34,93.29,3.30598626]
[1772655889314,3.30598626,93.34,93.28,3.30598626]
[1772655889515,3.30598626,93.34,93.306,9.641]
[1772655890112,3.30598626,93.34,93.298,9.642]
[1772655890413,3.30598626,93.33,93.28,3.30598626]
[1772655890719,15.39875067,93.34,93.262,19.291]
[1772655892513,15.39875067,93.34,93.299,9.641]
[1772655892718,15.39875067,93.34,93.262,19.291]
[1772655893924,15.39875067,93.34,93.285,9.643]
[1772655894719,15.39875067,93.34,93.292,9.642]
[1772655895222,15.39875067,93.34,93.3,9.641]
[1772655896122,15.39875067,93.34,93.26,8.26595701]
[1772655897915,15.39875067,93.34,93.292,9.642]
[1772655900024,14.7682527,93.359,93.307,9.641]
[1772655900222,14.7682527,93.359,93.28,8.26595701]
[1772655901118,14.7682527,93.359,93.314,9.64]
[1772655901426,14.7682527,93.359,93.281,21.558]
[1772655901626,14.7682527,93.359,93.266,21.558]
[1772655901825,14.7682527,93.359,93.28,8.26595701]
[1772655902530,14.7682527,93.359,93.267,21.558]
[1772655903022,14.80842615,93.358,93.267,21.558]
[1772655903428,14.80842615,93.358,93.285,9.643]
[1772655903829,14.80842615,93.358,93.23,19.79979247]
[1772655903830,12.88030136,93.309,93.231,13.19912085]
[1772655904832,12.88030136,93.309,93.255,13.19912085]
[1772655905128,12.88030136,93.339,93.255,13.19912085]
[1772655905332,12.88030136,93.339,93.271,13.19912085]
[1772655905629,12.88030136,93.358,93.297,22.84112085]
[1772655906130,12.88030136,93.358,93.297,13.19912085]
[1772655906323,12.88030136,93.378,93.297,13.19912085]
[1772655906735,12.88030136,93.378,93.312,13.19912085]
[1772655907931,12.88030136,93.378,93.291,13.19912085]
[1772655908634,12.88030136,93.378,93.321,9.639]
[1772655909036,12.88030136,93.378,93.322,13.19912085]
[1772655909235,12.88030136,93.398,93.325,13.19912085]
[1772655909439,12.88030136,93.398,93.331,13.19912085]
[1772655909839,12.88030136,93.398,93.35,9.636]
[1772655910432,12.88030136,93.416,93.36,9.635]
[1772655910628,12.88030136,93.416,93.361,13.19912085]
[1772655911536,12.88030136,93.416,93.373,9.634]
[1772655912235,12.88030136,93.448,93.373,9.634]
[1772655914241,12.88030136,93.448,93.363,9.635]
[1772655914736,12.88030136,93.448,93.311,50.0]
[1772655914737,12.88030136,93.429,93.331,13.19912085]
[1772655914932,12.88030136,93.428,93.331,13.19912085]
[1772655915138,12.88030136,93.409,93.342,9.637]
[1772655916136,12.88030136,93.409,93.333,13.19912085]
[1772655916441,12.88030136,93.389,93.316,13.19912085]
[1772655917543,12.88030136,93.389,93.316,22.83912085]
[1772655919042,12.88030136,93.389,93.317,11.64798899]
[1772655921146,12.19111796,93.406,93.331,11.64798899]
[1772655923648,12.19111796,93.406,93.335,11.64798899]
[1772655924537,12.19111796,93.406,93.338,9.638]
[1772655925539,12.19111796,93.406,93.347,11.64798899]
[1772655927444,12.19111796,93.406,93.351,9.636]
[1772655927649,12.19111796,93.406,93.352,11.53721421]
[1772655930157,12.19111796,93.406,93.354,11.53721421]
[1772655930454,10.87977048,93.428,93.354,11.53721421]
[1772655930654,10.87977048,93.428,93.355,11.53721421]
[1772655930848,10.87977048,93.448,93.38,11.53721421]
[1772655931958,10.87977048,93.448,93.388,21.16921421]
[1772655932156,10.87977048,93.448,93.388,11.53721421]
[1772655934357,10.87977048,93.448,93.398,11.53721421]
[1772655934556,10.87977048,93.469,93.398,11.53721421]
[1772655935458,10.87977048,93.469,93.405,9.631]
[1772655936362,10.87977048,93.469,93.398,11.53721421]
[1772655937362,10.87977048,93.468,93.398,11.53721421]
[1772655938364,10.87977048,93.429,93.32,8.24993493]
[1772655938558,10.87977048,93.429,93.321,11.53721421]
[1772655939257,10.87977048,93.429,93.355,11.53721421]
[1772655939657,10.87977048,93.429,93.34,8.24993493]
[1772655939658,10.87977048,93.429,93.378,11.53721421]
[1772655941464,10.87977048,93.429,93.382,9.633]
[1772655941657,10.87977048,93.448,93.382,21.17021421]
[1772655946467,10.87977048,93.448,93.383,11.53721421]
[1772655947972,10.87977048,93.469,93.395,11.53721421]
[1772655949467,12.38291318,93.468,93.402,9.631]
[1772655950269,12.38291318,93.449,93.372,12.10210524]
[1772655950476,12.38291318,93.429,93.372,12.10210524]
[1772655951376,12.38291318,93.429,93.376,9.634]
[1772655953073,12.38291318,93.429,93.38,9.633]
[1772655955280,12.38291318,93.429,93.362,12.10210524]
[1772655956380,12.38291318,93.429,93.363,12.10210524]
[1772655957580,12.38291318,93.448,93.363,12.10210524]
[1772655957781,12.38291318,93.448,93.365,12.10210524]
[1772655958377,12.38291318,93.448,93.386,9.633]
[1772655959380,12.38291318,93.448,93.379,9.633]
[1772655960187,12.38291318,93.448,93.381,12.10210524]
[1772655960886,12.38291318,93.448,93.394,9.632]
[1772655961484,12.38291318,93.448,93.399,12.10210524]
[1772655961678,12.38291318,93.468,93.399,12.10210524]
[1772655961879,12.38291318,93.468,93.414,9.63]
[1772655962681,12.38291318,93.468,93.401,12.10210524]
[1772655962886,12.38291318,93.484,93.411,12.10210524]
[1772655964384,12.38291318,93.484,93.43,9.628]
[1772655965488,12.38291318,93.484,93.433,12.10210524]
[1772655965789,12.38291318,93.5,93.433,12.10210524]
[1772655966188,12.38291318,93.5,93.446,12.10210524]
[1772655966392,12.38291318,93.5,93.411,12.10210524]
[1772655967480,12.38291318,93.5,93.41,8.24993493]
[1772655967481,12.38291318,93.5,93.438,9.627]
[1772655967680,12.38291318,93.5,93.438,21.72910524]
[1772655967880,12.38291318,93.5,93.439,12.10210524]
[1772655968088,12.38291318,93.5,93.449,9.626]
[1772655968289,12.38291318,93.5,93.439,12.10210524]
[1772655968590,12.38291318,93.5,93.449,12.10210524]
[1772655970183,12.38291318,93.5,93.45,9.626]
[1772655970392,12.38291318,93.5,93.449,12.10210524]
[1772655971491,12.38291318,93.5,93.451,12.10210524]
[1772655972288,12.38291318,93.5,93.41,8.24993493]
[1772655972289,12.38291318,93.5,93.434,12.10210524]
[1772655972491,12.38291318,93.489,93.419,12.10210524]
[1772655972798,12.38291318,93.481,93.419,12.10210524]
[1772655973496,12.38291318,93.469,93.419,12.10210524]
[1772655973695,12.38291318,93.469,93.412,9.63]
[1772655974295,12.38291318,93.469,93.419,9.629]
[1772655974497,12.38291318,93.469,93.42,12.10210524]
[1772655975585,12.38291318,93.488,93.424,12.10210524]
[1772655976398,12.38291318,93.487,93.424,12.10210524]
[1772655978196,12.38291318,93.487,93.425,9.629]
[1772655978592,3.29678266,93.47,93.425,9.629]
[1772655978789,3.29678266,93.47,93.432,9.628]
[1772655979194,3.29678266,93.48,93.432,21.01689812]
[1772655979802,3.29678266,93.48,93.439,9.627]
[1772655980104,3.29678266,93.49,93.44,14.68568078]
[1772655980298,3.29678266,93.49,93.441,11.38889812]
[1772655981202,3.29678266,93.49,93.444,9.627]
[1772655981602,3.29678266,93.49,93.444,11.38889812]
[1772655982101,3.29678266,93.5,93.444,11.38889812]
[1772655982506,10.95593652,93.504,93.444,11.38889812]
[1772655983595,10.95593652,93.504,93.453,9.626]
[1772655986603,10.95593652,93.504,93.454,11.38889812]
[1772655986904,10.95593652,93.504,93.457,9.625]
[1772655987604,10.81862371,93.509,93.449,9.626]
[1772655990499,10.81862371,93.509,93.455,11.54646398]
[1772655991108,10.81862371,93.509,93.441,11.54646398]
[1772655991308,10.81862371,93.501,93.441,11.54646398]
[1772655995602,10.81862371,93.5,93.441,11.54646398]
[1772655996101,8.00547867,93.501,93.43,9.628]
[1772655996102,10.81862371,93.498,93.43,9.628]
[1772655996307,10.81862371,93.489,93.426,11.54646398]
[1772655996696,10.81862371,93.489,93.37,19.77737664]
[1772655996697,10.81862371,93.469,93.411,11.54646398]
[1772655998506,10.81862371,93.469,93.415,11.54646398]
[1772656001504,42.92862371,93.487,93.415,11.54646398]
[1772656001708,8.02628523,93.486,93.426,11.54646398]
[1772656002010,10.81862371,93.503,93.43,8.23822332]
[1772656002211,10.81862371,93.503,93.431,11.54646398]
[1772656002511,10.81862371,93.503,93.451,11.54646398]
[1772656003403,10.81862371,93.503,93.457,11.54646398]
[1772656005810,3.29437459,93.5,93.457,11.54646398]
[1772656008914,0.00031988,93.512,93.471,10.16232209]
[1772656009115,3.29437459,93.54,93.481,10.16232209]
[1772656009914,3.29437459,93.53,93.482,10.16232209]
[1772656010511,3.29437459,93.54,93.491,10.16232209]
[1772656011511,3.29437459,93.54,93.493,9.621]
[1772656012513,10.24939649,93.539,93.49,3.29437459]
[1772656012817,10.24939649,93.539,93.484,9.622]
[1772656013010,10.24939649,93.539,93.485,10.16232209]
[1772656013212,10.24939649,93.539,93.487,10.16232209]
[1772656014709,3.29437459,93.52,93.47,10.16232209]
[1772656014909,3.29437459,93.53,93.48,3.29437459]
[1772656015114,10.24939649,93.539,93.481,10.16232209]
[1772656015407,10.24939649,93.539,93.491,10.16232209]
[1772656015607,3.29437459,93.54,93.491,10.16232209]
[1772656015808,10.24939649,93.554,93.501,10.16232209]
[1772656016013,10.24939649,93.569,93.511,10.16232209]
[1772656016218,3.29437459,93.56,93.511,10.16232209]
[1772656016413,3.29437459,93.55,93.511,10.16232209]
[1772656017216,10.24939649,93.559,93.511,10.16232209]
[1772656017420,10.24939649,93.573,93.521,10.16232209]
[1772656017617,19.83059436,93.62,93.48,19.246]
[1772656017618,10.24939649,93.588,93.54,3.29437459]
[1772656018113,10.24939649,93.588,93.531,10.16232209]
[1772656018318,10.24939649,93.579,93.531,10.16232209]
[1772656018713,3.29437459,93.57,93.531,10.16232209]
[1772656021619,10.24939649,93.579,93.531,10.16232209]
[1772656022122,9.95272513,93.621,93.482,50.0]
[1772656022123,13.54377108,93.57,93.516,10.16232209]
[1772656022822,13.54377108,93.57,93.522,10.16232209]
[1772656025427,13.54377108,93.57,93.523,9.618]
[1772656025632,13.54377108,93.57,93.52,3.29437459]
[1772656025633,3.29437459,93.57,93.524,10.16232209]
[1772656026534,3.29437459,93.57,93.529,10.16232209]
[1772656026836,3.29437459,93.56,93.515,10.16232209]
[1772656029431,3.29437459,93.54,93.499,10.16232209]
[1772656029733,0.00029258,93.592,93.481,10.16232209]
[1772656029734,3.29437459,93.52,93.481,10.16232209]
[1772656030234,3.29437459,93.51,93.467,10.16232209]
[1772656030531,3.29437459,93.49,93.467,10.16232209]
[1772656030734,3.29437459,93.5,93.467,10.16232209]
[1772656031737,3.29437459,93.51,93.467,10.16232209]
[1772656032633,3.29421636,93.51,93.467,10.16232209]
[1772656033431,3.29421636,93.5,93.467,10.16232209]
[1772656034531,3.29421636,93.51,93.467,10.16232209]
[1772656037438,3.29421636,93.51,93.467,19.78632209]
[1772656038134,3.29421636,93.49,93.461,50.0]
[1772656038336,3.29421636,93.49,93.453,50.0]
[1772656038839,3.29421636,93.48,93.453,59.83323249]
[1772656039332,3.29421636,93.49,93.453,59.83323249]
[1772656040735,3.29421636,93.49,93.455,9.625]
[1772656041536,10.24939649,93.509,93.456,9.83323249]
[1772656041733,440.0,93.589,93.456,9.83323249]
[1772656041734,3.29421636,93.51,93.456,9.83323249]
[1772656042240,3.29421636,93.5,93.46,9.83323249]
[1772656042744,13.34669387,93.5,93.452,9.83323249]
[1772656043644,13.34669387,93.51,93.465,9.83323249]
[1772656044446,3.29421636,93.52,93.467,9.83323249]
[1772656045040,10.05247751,93.519,93.467,9.83323249]
[1772656045346,3.29421636,93.51,93.467,9.83323249]
[1772656046149,3.29421636,93.51,93.467,19.45723249]
[1772656046448,10.05247751,93.519,93.467,9.83323249]
[1772656046649,3.29421636,93.53,93.471,10.50218072]
[1772656046842,10.46382819,93.519,93.471,10.50218072]
[1772656047046,3.29421636,93.51,93.471,10.50218072]
[1772656048249,3.29421636,93.51,93.471,10.50218072]
[1772656048446,3.29421636,93.5,93.455,10.50218072]
[1772656048750,3.29421636,93.52,93.471,10.50218072]
[1772656048939,10.46382819,93.528,93.477,10.50218072]
[1772656049141,1.86146526,93.567,93.451,19.252]
[1772656049142,3.29421636,93.54,93.49,3.29421636]
[1772656049349,3.29421636,93.54,93.491,10.50218072]
[1772656050244,10.46382819,93.539,93.491,10.50218072]
[1772656051653,3.29421636,93.53,93.491,10.50218072]
[1772656052349,10.46382819,93.539,93.49,9.622]
[1772656053456,10.46382819,93.539,93.497,9.621]
[1772656053955,3.29421636,93.55,93.498,10.50218072]
[1772656054344,13.75804455,93.55,93.498,10.50218072]
[1772656054546,10.46382819,93.549,93.498,10.50218072]
[1772656054755,3.29421636,93.54,93.498,10.50218072]
[1772656054955,3.29421636,93.53,93.485,10.50218072]
[1772656055653,10.46382819,93.535,93.471,50.0]
[1772656055654,3.29421636,93.51,93.471,60.50218072]
[1772656055859,3.29421636,93.48,93.438,10.50218072]
[1772656056356,3.29421636,93.48,93.444,9.627]
[1772656057048,3.29421636,93.49,93.444,9.627]
[1772656057858,3.29421636,93.47,93.421,10.50218072]
[1772656058157,9.95272513,93.536,93.398,259.52026233]
[1772656058158,3.29421636,93.49,93.431,10.50218072]
[1772656058355,13.75804455,93.49,93.431,10.50218072]
[1772656058954,10.46382819,93.509,93.441,10.50218072]
[1772656059160,10.46382819,93.509,93.46,3.29421636]
[1772656059354,13.25221326,93.552,93.398,259.52026233]
[1772656059355,3.29421636,93.54,93.481,10.50218072]
[1772656059555,28.30156598,93.597,93.404,149.817]
[1772656059556,3.29421636,93.53,93.47,3.29421636]
[1772656059753,3.29421636,93.52,93.47,3.29421636]
[1772656060058,3.29421636,93.52,93.465,10.50218072]
[1772656060258,3.29421636,93.51,93.451,10.50218072]
[1772656060459,3.29421636,93.5,93.451,10.50218072]
[1772656060861,10.46382819,93.509,93.451,60.50218072]
[1772656061061,10.46382819,93.509,93.452,10.50218072]
[1772656062364,3.29421636,93.5,93.452,10.50218072]
[1772656062565,10.46382819,93.509,93.452,10.50218072]
[1772656063060,3.29421636,93.49,93.444,9.627]
[1772656063960,3.29421636,93.5,93.444,9.627]
[1772656066373,3.29421636,93.49,93.444,9.627]
[1772656066572,10.46382819,93.499,93.444,9.627]
[1772656067075,10.46382819,93.499,93.46,3.29421636]
[1772656067375,10.46382819,93.499,93.45,3.29421636]
[1772656068072,10.46382819,93.499,93.441,10.50218072]
[1772656068464,10.46382819,93.499,93.453,9.626]
[1772656068670,12.93557295,93.52,93.461,9.99672949]
[1772656069368,9.64135659,93.519,93.461,9.99672949]
[1772656069675,3.29421636,93.5,93.461,9.99672949]
[1772656070173,9.64135659,93.509,93.461,9.99672949]
[1772656073275,3.29421636,93.5,93.452,9.626]
[1772656073473,12.93557295,93.5,93.451,50.0]
[1772656074380,12.93557295,93.5,93.448,9.626]
[1772656074681,9.64135659,93.519,93.461,9.99672949]
[1772656075074,9.64135659,93.538,93.48,3.29421636]
[1772656075278,9.64135659,93.538,93.48,13.29094585]
[1772656075881,3.29421636,93.52,93.48,9.99672949]
[1772656076075,9.64135659,93.519,93.464,9.99672949]
[1772656076886,9.64135659,93.519,93.469,9.624]
[1772656079688,9.64135659,93.519,93.469,19.62072949]
[1772656080683,3.29421636,93.53,93.476,9.99672949]
[1772656080887,9.64135659,93.529,93.476,9.99672949]
[1772656081086,3.29421636,93.52,93.476,9.99672949]
[1772656081488,9.64135659,93.519,93.476,9.99672949]
[1772656082188,9.64135659,93.519,93.46,3.29421636]
[1772656082389,9.64135659,93.519,93.461,9.99672949]
[1772656082894,9.64135659,93.519,93.474,9.623]
[1772656083686,9.64135659,93.519,93.48,9.623]
[1772656085491,14.18,93.525,93.49,3.29421636]
[1772656085692,14.18,93.525,93.491,9.99672949]
[1772656088494,14.18,93.525,93.497,9.621]
[1772656088995,14.18,93.525,93.491,9.99672949]
[1772656089198,14.18,93.525,93.49,9.622]
[1772656089496,14.18,93.525,93.483,50.0]
[1772656089896,14.18,93.525,93.485,9.622]
[1772656090099,14.18,93.525,93.486,9.99672949]
[1772656090300,14.18,93.525,93.49,3.29421636]
[1772656091493,3.29421636,93.52,93.486,9.99672949]
[1772656091698,3.29421636,93.51,93.483,50.0]
[1772656091894,9.64135659,93.519,93.483,50.0]
[1772656092398,9.64135659,93.519,93.472,59.99672949]
[1772656092698,9.64135659,93.519,93.482,9.623]
[1772656094598,14.18,93.525,93.489,9.622]
[1772656102801,14.18,93.525,93.481,8.80982581]
[1772656103008,14.18,93.525,93.475,50.0]
[1772656103009,8.88110305,93.548,93.491,8.80982581]
[1772656103207,3.29311531,93.53,93.491,8.80982581]
[1772656103408,3.29311531,93.51,93.482,9.623]
[1772656103609,3.29311531,93.49,93.45,8.80982581]
[1772656103809,8.88110305,93.499,93.471,9.624]
[1772656104102,8.88110305,93.499,93.45,58.80982581]
[1772656104103,40.99110305,93.541,93.48,3.29311531]
[1772656104305,32.11,93.558,93.511,8.80982581]
[1772656104501,8.88110305,93.579,93.53,3.29311531]
[1772656104704,8.88110305,93.579,93.501,8.80982581]
[1772656104908,3.29311531,93.57,93.51,3.29311531]
[1772656105107,8.88110305,93.57,93.52,3.29311531]
[1772656105410,8.88110305,93.588,93.53,3.29311531]
[1772656105710,8.88110305,93.579,93.53,8.80982581]
[1772656106612,8.88110305,93.579,93.53,12.10294112]
[1772656106807,3.29311531,93.57,93.51,3.29311531]
[1772656107112,8.87684046,93.589,93.54,3.29311531]
[1772656107309,8.87684046,93.579,93.521,9.01818165]
[1772656107711,8.87684046,93.579,93.53,3.29311531]
[1772656107906,8.87684046,93.579,93.521,9.01818165]
[1772656107907,8.87684046,93.579,93.54,3.29311531]
[1772656108112,0.00029258,93.592,93.54,3.29311531]
[1772656108312,0.00029258,93.592,93.55,3.29311531]
[1772656108715,0.00029258,93.592,93.57,3.29311531]
[1772656108906,0.00029258,93.596,93.566,9.01818165]
[1772656109111,8.87684046,93.63,93.58,3.29311531]
[1772656109515,8.87684046,93.664,93.61,3.29311531]
[1772656110008,3.29311531,93.65,93.6,3.29311531]
[1772656110214,8.87684046,93.659,93.6,3.29311531]
[1772656110612,3.29311531,93.65,93.6,3.29311531]
[1772656110806,8.87684046,93.659,93.6,3.29311531]
[1772656112518,8.87684046,93.659,93.61,3.29311531]
[1772656113017,8.87684046,93.659,93.6,3.29311531]
[1772656113418,8.87684046,93.659,93.61,3.29311531]
[1772656113713,3.29311531,93.67,93.54,19.234]
[1772656113714,8.87684046,93.669,93.62,3.29311531]
[1772656113913,8.87684046,93.669,93.63,3.29311531]
[1772656114619,8.87684046,93.669,93.62,3.29311531]
[1772656116521,8.87684046,93.669,93.617,9.01818165]